bitfinex/quotes_BTCUSD_20230906
["timestamp","ask_amount","ask_price","bid_price","bid_amount"]
[1694024492134,0.1,25728.0,25722.0,0.06]
[1694024492135,0.12,25728.0,25722.0,0.06]
[1694024492354,0.897368,25728.0,25722.0,0.777535]
[1694024492563,0.12,25728.0,25722.0,2.00172427]
[1694024492790,0.12,25728.0,25723.0,0.38664527]
[1694024493010,0.12,25728.0,25724.0,1.554944]
[1694024493461,0.12,25728.0,25724.0,0.777468]
[1694024493687,1.701907,25728.0,25721.0,0.777553]
[1694024493897,1.701907,25728.0,25722.0,0.003]
[1694024493898,0.08,25723.0,25722.0,0.003]
[1694024494114,0.857514,25723.0,25722.0,0.003]
[1694024494332,1.0987644,25723.0,25722.0,0.003]
[1694024494760,1.48540967,25723.0,25722.0,0.003]
[1694024494969,0.3212504,25723.0,25718.0,0.777663]
[1694024495190,0.081,25723.0,25722.0,0.008]
[1694024495399,0.001,25723.0,25722.0,0.94020211]
[1694024495614,0.12,25725.0,25722.0,0.777544]
[1694024495874,0.12,25725.0,25722.0,0.93420211]
[1694024495875,0.019,25723.0,25722.0,0.93420211]
[1694024496085,0.032,25723.0,25722.0,1.94573327]
[1694024496301,0.019,25723.0,25722.0,3.02347727]
[1694024496516,0.12,25730.0,25724.0,0.06]
[1694024496730,0.12,25730.0,25725.0,2.98113227]
[1694024496959,0.12,25730.0,25725.0,3.02113227]
[1694024496960,0.1,25730.0,25725.0,3.02113227]
[1694024497387,0.1,25730.0,25726.0,0.15465811]
[1694024497603,0.1,25730.0,25726.0,1.554815]
[1694024497821,0.1,25730.0,25726.0,0.777396]
[1694024498036,0.1,25730.0,25725.0,2.15617138]
[1694024498315,0.1,25730.0,25725.0,2.00150627]
[1694024498528,0.1,25730.0,25725.0,2.17316438]
[1694024498750,0.1,25730.0,25726.0,0.001]
[1694024498959,0.1,25730.0,25726.0,1.554816]
[1694024499387,0.1,25730.0,25726.0,2.332239]
[1694024499609,0.1,25730.0,25727.0,0.38664527]
[1694024499826,0.1,25730.0,25728.0,1.554726]
[1694024500253,0.1,25730.0,25727.0,1.554766]
[1694024500468,0.1,25730.0,25727.0,1.16403427]
[1694024501125,0.1,25730.0,25727.0,2.71882027]
[1694024501360,0.1,25730.0,25728.0,0.025]
[1694024501791,0.1,25730.0,25727.0,0.77739]
[1694024502007,0.1,25730.0,25727.0,1.57978]
[1694024502230,0.1,25730.0,25728.0,0.38664527]
[1694024502445,0.1,25730.0,25729.0,0.777332]
[1694024502672,0.1,25730.0,25728.0,1.16398127]
[1694024502673,0.1,25730.0,25728.0,0.025]
[1694024502908,0.777199,25734.0,25727.0,0.025]
[1694024502909,0.12,25729.0,25727.0,0.025]
[1694024503143,0.12,25728.0,25727.0,0.025]
[1694024503428,0.12,25728.0,25724.0,0.777482]
[1694024503638,0.1,25730.0,25728.0,0.025]
[1694024504071,0.06,25729.0,25727.0,0.777379]
[1694024504293,0.06,25729.0,25727.0,0.025]
[1694024504509,0.08,25729.0,25727.0,0.802393]
[1694024504717,0.08,25729.0,25727.0,0.025]
[1694024504982,0.08,25729.0,25728.0,0.025]
[1694024505197,0.08,25729.0,25727.0,0.025]
[1694024505198,0.857333,25729.0,25727.0,0.025]
[1694024505411,0.08,25729.0,25725.0,0.06]
[1694024505622,0.2405,25729.0,25727.0,0.025]
[1694024506284,0.1,25728.0,25723.0,1.614987]
[1694024506498,0.1,25728.0,25723.0,0.837495]
[1694024506706,0.1,25728.0,25727.0,0.025]
[1694024506919,0.2605,25728.0,25727.0,0.025]
[1694024507102,0.2605,25728.0,25723.0,1.615009]
[1694024507374,0.2605,25728.0,25724.0,2.71909227]
[1694024507803,0.2605,25728.0,25725.0,0.025]
[1694024508046,0.2605,25728.0,25726.0,0.777423]
[1694024508293,0.1605,25728.0,25726.0,1.554846]
[1694024508556,0.1605,25728.0,25725.0,0.777429]
[1694024508773,0.1605,25728.0,25726.0,1.554845]
[1694024508982,0.1,25729.0,25726.0,2.332268]
[1694024509225,0.02,25730.0,25727.0,0.38664527]
[1694024509226,0.1,25730.0,25727.0,0.38664527]
[1694024509445,0.1048,25737.0,25733.0,0.02]
[1694024509683,0.1,25737.0,25734.0,2.18319527]
[1694024509900,0.1,25737.0,25733.0,1.574398]
[1694024510118,0.1,25737.0,25734.0,2.331541]
[1694024510578,0.1,25737.0,25732.0,0.06]
[1694024510795,0.1,25737.0,25732.0,1.614463]
[1694024511013,0.1,25737.0,25733.0,1.554396]
[1694024511299,0.1,25737.0,25733.0,1.16382927]
[1694024511510,0.1,25737.0,25734.0,0.025]
[1694024511730,0.1,25737.0,25735.0,0.777151]
[1694024511944,0.1,25737.0,25735.0,2.71809827]
[1694024512151,0.166,25739.0,25735.0,2.71809827]
[1694024512152,0.266,25739.0,25735.0,2.71809827]
[1694024512383,0.266,25739.0,25735.0,2.87275638]
[1694024512811,0.266,25739.0,25735.0,3.11495638]
[1694024513033,0.166,25739.0,25735.0,3.11495638]
[1694024513251,0.1,25737.0,25735.0,1.96594727]
[1694024513485,0.1,25737.0,25735.0,0.802151]
[1694024513701,0.1,25737.0,25735.0,0.827151]
[1694024513923,0.166,25739.0,25735.0,2.76809827]
[1694024514145,0.166,25739.0,25735.0,1.579302]
[1694024514146,0.1,25737.0,25735.0,1.579302]
[1694024514367,0.1,25737.0,25735.0,0.025]
[1694024515257,0.1,25737.0,25735.0,2.356452]
[1694024515477,0.266,25739.0,25735.0,2.381452]
[1694024515705,0.266,25739.0,25736.0,0.2422]
[1694024515909,0.266,25739.0,25737.0,2.331273]
[1694024516145,0.166,25739.0,25737.0,2.331273]
[1694024516359,0.02,25740.0,25737.0,2.71791827]
[1694024516360,0.1,25740.0,25737.0,2.71791827]
[1694024517015,0.1,25740.0,25736.0,1.079313]
[1694024517225,0.1,25740.0,25737.0,0.777088]
[1694024517490,0.1,25740.0,25735.0,0.968042]
[1694024517491,0.2837,25740.0,25735.0,0.968042]
[1694024517725,0.2837,25740.0,25733.0,0.6501]
[1694024517726,0.1,25738.0,25737.0,0.025]
[1694024517937,1.674122,25738.0,25737.0,0.025]
[1694024518152,0.1,25736.0,25732.0,0.837222]
[1694024518391,0.1,25736.0,25735.0,0.025]
[1694024518609,0.1,25736.0,25735.0,1.554282]
[1694024519514,0.1,25736.0,25735.0,0.777132]
[1694024520158,0.1,25736.0,25735.0,1.554283]
[1694024520578,0.1,25736.0,25734.0,0.777152]
[1694024520812,0.1,25736.0,25735.0,0.025]
[1694024521039,0.877125,25736.0,25735.0,0.025]
[1694024521258,0.877125,25736.0,25735.0,0.05]
[1694024521259,0.1,25736.0,25735.0,0.05]
[1694024521469,0.1,25736.0,25732.0,0.83723]
[1694024521678,0.2505,25736.0,25734.0,0.025]
[1694024522116,0.2505,25736.0,25734.0,0.777175]
[1694024522327,0.2505,25736.0,25735.0,0.019]
[1694024522573,0.2505,25736.0,25734.0,1.55435]
[1694024522789,0.1,25736.0,25735.0,1.554302]
[1694024523435,0.02,25736.0,25735.0,1.554302]
[1694024523667,0.1582,25739.0,25735.0,2.74309827]
[1694024523938,0.1582,25739.0,25735.0,2.89775638]
[1694024524168,0.12,25740.0,25736.0,0.64884527]
[1694024524408,0.08,25739.0,25737.0,3.108268]
[1694024524630,0.2582,25742.0,25738.0,0.38664527]
[1694024524856,0.2582,25742.0,25739.0,2.48573011]
[1694024524857,0.1,25742.0,25739.0,2.48573011]
[1694024525079,0.1,25742.0,25740.0,0.15465811]
[1694024525330,0.1582,25744.0,25741.0,3.35008]
[1694024525541,0.1,25743.0,25741.0,3.35008]
[1694024525982,0.1523,25746.0,25741.0,3.35008]
[1694024525983,0.2523,25746.0,25741.0,3.35008]
[1694024526218,0.1,25746.0,25743.0,0.2422]
[1694024526477,0.18566053,25750.0,25742.0,0.54130338]
[1694024526478,0.33207572,25750.0,25745.0,0.2422]
[1694024526716,0.34513026,25750.0,25746.0,2.09491138]
[1694024526931,0.1,25750.0,25749.0,0.2422]
[1694024527150,0.1,25750.0,25749.0,1.95031611]
[1694024527371,0.1,25750.0,25749.0,1.795658]
[1694024527592,0.2523,25752.0,25749.0,1.795658]
[1694024527835,0.1,25750.0,25749.0,1.95031611]
[1694024528055,0.1,25750.0,25749.0,1.795658]
[1694024528277,0.1,25750.0,25749.0,1.820658]
[1694024528967,0.1,25750.0,25749.0,2.23230327]
[1694024529186,0.1,25750.0,25749.0,0.05]
[1694024529399,0.1,25750.0,25749.0,0.826729]
[1694024529628,0.1,25750.0,25749.0,1.603458]
[1694024529842,0.1,25750.0,25749.0,1.578458]
[1694024530060,0.1,25750.0,25749.0,1.603458]
[1694024530315,0.1,25750.0,25749.0,0.826729]
[1694024530528,0.1,25750.0,25749.0,1.94010327]
[1694024530946,0.2523,25752.0,25749.0,2.23230327]
[1694024531153,0.2523,25752.0,25749.0,2.98403227]
[1694024531374,0.1,25752.0,25750.0,0.38664527]
[1694024531582,0.1,25752.0,25751.0,2.330004]
[1694024531798,0.1624,25754.0,25751.0,2.330004]
[1694024532020,0.1611,25757.0,25753.0,0.2422]
[1694024532238,0.1,25758.0,25755.0,0.6501]
[1694024532439,0.1,25758.0,25756.0,2.09433938]
[1694024532684,0.1,25758.0,25756.0,2.87085738]
[1694024532861,0.1,25757.0,25752.0,0.06]
[1694024533101,0.1,25757.0,25754.0,0.796577]
[1694024533102,0.02,25756.0,25754.0,0.796577]
[1694024533310,0.02,25756.0,25753.0,1.553185]
[1694024533744,0.1,25756.0,25753.0,1.553185]
[1694024533945,0.1,25747.0,25746.0,0.155463]
[1694024534228,0.1,25747.0,25746.0,2.09574627]
[1694024534430,0.1,25747.0,25746.0,1.94028327]
[1694024534643,0.1,25747.0,25746.0,2.71710227]
[1694024535062,0.2598,25752.0,25748.0,0.4679]
[1694024535298,0.1598,25752.0,25749.0,3.89039538]
[1694024535511,0.1,25751.0,25749.0,3.89039538]
[1694024535714,0.1,25751.0,25749.0,3.73573727]
[1694024535927,0.1798,25752.0,25749.0,1.018923]
[1694024535928,0.1598,25752.0,25749.0,1.018923]
[1694024536137,0.1,25751.0,25749.0,0.776725]
[1694024536564,0.1,25751.0,25749.0,1.553458]
[1694024536742,0.1,25751.0,25749.0,2.330187]
[1694024537000,0.1,25751.0,25749.0,1.578458]
[1694024537414,0.1,25751.0,25749.0,1.553458]
[1694024537614,0.1,25751.0,25749.0,1.603458]
[1694024537843,0.1,25751.0,25749.0,0.05]
[1694024538045,0.12,25750.0,25749.0,0.05]
[1694024539559,0.12,25750.0,25749.0,0.025]
[1694024539770,2.450097,25750.0,25749.0,0.025]
[1694024540165,2.450097,25750.0,25749.0,0.05]
[1694024540430,2.450097,25750.0,25749.0,0.025]
[1694024540635,3.18539747,25750.0,25749.0,0.025]
[1694024541091,0.1,25744.0,25740.0,0.0318067]
[1694024541293,0.1,25744.0,25740.0,1.16364127]
[1694024541504,0.1,25743.0,25740.0,2.00064127]
[1694024541750,0.1,25743.0,25741.0,0.06]
[1694024541964,0.1,25743.0,25742.0,0.77694]
[1694024542178,0.1,25743.0,25742.0,1.55388]
[1694024542406,0.1,25743.0,25741.0,0.776942]
[1694024542680,0.1,25743.0,25739.0,1.796227]
[1694024542681,0.02,25742.0,25739.0,1.796227]
[1694024542918,0.02,25742.0,25740.0,0.06]
[1694024543205,0.02,25742.0,25741.0,2.33091]
[1694024543425,0.02,25742.0,25741.0,2.95975527]
[1694024543673,0.1,25744.0,25741.0,3.39265527]
[1694024543928,0.1,25743.0,25742.0,0.79454527]
[1694024544168,0.02,25743.0,25742.0,2.71746527]
[1694024544418,0.1,25743.0,25742.0,2.71746527]
[1694024544878,0.1,25743.0,25741.0,0.776953]
[1694024545089,0.1,25743.0,25740.0,1.638971]
[1694024545298,0.1,25743.0,25741.0,1.553938]
[1694024545538,0.1,25743.0,25741.0,2.330908]
[1694024545958,0.1,25743.0,25741.0,2.355908]
[1694024546186,0.1,25743.0,25742.0,0.025]
[1694024546395,0.1,25743.0,25742.0,0.80194]
[1694024546602,0.1,25743.0,25742.0,1.55388]
[1694024547240,0.1,25743.0,25742.0,0.77694]
[1694024547653,0.1,25743.0,25742.0,0.80194]
[1694024549626,0.1,25743.0,25742.0,1.99052527]
[1694024549866,0.1,25743.0,25742.0,2.76746527]
[1694024550078,0.1,25744.0,25742.0,2.76746527]
[1694024550285,0.1,25744.0,25743.0,0.38664527]
[1694024550498,0.1,25744.0,25743.0,1.94046527]
[1694024550720,0.1,25744.0,25742.0,0.05]
[1694024550945,0.1,25743.0,25742.0,0.05]
[1694024551161,0.12,25743.0,25742.0,0.05]
[1694024551997,0.12,25743.0,25742.0,1.57888]
[1694024552415,0.12,25743.0,25742.0,0.80194]
[1694024553047,0.12,25743.0,25742.0,0.77694]
[1694024553268,0.12,25743.0,25741.0,1.553896]
[1694024553487,0.12,25742.0,25741.0,1.553896]
[1694024553700,0.1,25741.0,25740.0,1.553973]
[1694024554761,0.1,25741.0,25739.0,0.777007]
[1694024554971,0.1,25738.0,25735.0,1.554258]
[1694024555184,0.1,25738.0,25735.0,1.94089827]
[1694024555185,0.1,25737.0,25735.0,1.94089827]
[1694024555403,0.1,25737.0,25735.0,2.71804927]
[1694024555634,0.1,25737.0,25735.0,1.94089827]
[1694024556103,0.1,25737.0,25735.0,2.71804927]
[1694024556322,0.1,25737.0,25735.0,1.554253]
[1694024556539,0.1,25737.0,25730.0,1.614584]
[1694024556540,0.1,25734.0,25730.0,1.614584]
[1694024556722,0.1,25734.0,25731.0,1.16390527]
[1694024557002,0.257,25734.0,25731.0,0.777267]
[1694024557219,0.967426,25736.0,25735.0,0.025]
[1694024557220,0.1,25736.0,25735.0,0.025]
[1694024557443,0.1,25741.0,25735.0,3.19995638]
[1694024557660,0.1,25740.0,25737.0,0.2422]
[1694024557868,0.1,25738.0,25737.0,1.796344]
[1694024558084,0.1,25738.0,25736.0,0.837105]
[1694024558085,0.1,25738.0,25736.0,1.614205]
[1694024558318,0.1,25738.0,25736.0,0.44664527]
[1694024558747,0.1,25738.0,25736.0,0.06]
[1694024558954,0.1,25738.0,25735.0,0.025]
[1694024559642,0.1,25738.0,25736.0,0.06]
[1694024559850,0.1,25738.0,25736.0,0.47164527]
[1694024560058,0.1,25738.0,25736.0,1.24876427]
[1694024560294,0.1,25738.0,25737.0,0.025]
[1694024560508,0.1,25738.0,25737.0,0.38664527]
[1694024561377,0.1,25738.0,25736.0,0.06]
[1694024561581,0.1,25738.0,25737.0,0.025]
[1694024561798,0.2829825,25738.0,25737.0,0.025]
[1694024562011,0.897061,25738.0,25737.0,0.025]
[1694024562263,1.674122,25738.0,25737.0,0.025]
[1694024562481,0.12,25738.0,25737.0,0.025]
[1694024562690,0.1,25738.0,25737.0,0.025]
[1694024562910,0.1,25738.0,25737.0,0.05]
[1694024563123,0.12,25738.0,25737.0,0.05]
[1694024563339,0.12,25738.0,25737.0,0.025]
[1694024563800,0.12,25738.0,25737.0,0.05]
[1694024564439,0.924641,25738.0,25737.0,0.025]
[1694024564629,0.14758,25738.0,25737.0,0.025]
[1694024564916,0.12,25738.0,25737.0,0.025]
[1694024565123,0.897061,25738.0,25737.0,0.05]
[1694024565329,1.674122,25738.0,25737.0,0.05]
[1694024565985,2.451183,25738.0,25737.0,0.05]
[1694024566219,2.7895862,25738.0,25737.0,0.05]
[1694024566642,2.451183,25738.0,25737.0,0.05]
[1694024566847,1.674122,25738.0,25737.0,0.05]
[1694024567062,2.451183,25738.0,25737.0,0.05]
[1694024567506,2.451183,25738.0,25737.0,0.025]
[1694024567924,0.1,25735.0,25731.0,0.1812]
[1694024568135,0.1,25735.0,25730.0,0.2213]
[1694024568355,1.027256,25735.0,25730.0,0.54794527]
[1694024568563,1.027256,25735.0,25732.0,0.06]
[1694024568564,1.804412,25735.0,25732.0,0.06]
[1694024568844,2.782406,25735.0,25730.0,0.1613]
[1694024569077,0.1,25731.0,25729.0,0.1947]
[1694024569295,0.1,25731.0,25726.0,0.817413]
[1694024569296,0.1,25731.0,25730.0,0.025]
[1694024569725,0.1,25731.0,25730.0,0.05]
[1694024569726,0.877272,25731.0,25730.0,0.05]
[1694024569939,0.897272,25731.0,25730.0,0.05]
[1694024570149,1.674544,25731.0,25730.0,0.05]
[1694024570419,0.06,25719.0,25717.0,0.965984]
[1694024570644,0.06,25719.0,25718.0,0.38664527]
[1694024570861,0.06,25719.0,25718.0,1.94197527]
[1694024571069,0.06,25719.0,25718.0,0.38664527]
[1694024571332,0.06,25718.0,25716.0,0.06]
[1694024571550,0.06,25718.0,25716.0,1.22434127]
[1694024572201,0.06,25718.0,25716.0,2.00206627]
[1694024572464,0.062,25718.0,25716.0,2.96509127]
[1694024573256,0.062,25718.0,25716.0,2.02606627]
[1694024573780,0.062,25718.0,25716.0,2.05006627]
[1694024573781,0.064,25718.0,25716.0,2.05006627]
[1694024574413,0.064,25718.0,25716.0,0.108]
[1694024574628,0.064,25718.0,25716.0,1.27236627]
[1694024574839,0.064,25718.0,25716.0,0.108]
[1694024575052,0.064,25718.0,25716.0,0.048]
[1694024575540,0.08,25717.0,25716.0,0.048]
[1694024575990,0.46664527,25717.0,25716.0,0.048]
[1694024576207,1.63539,25717.0,25716.0,0.048]
[1694024576436,2.02203527,25717.0,25716.0,0.048]
[1694024576660,2.02203527,25717.0,25716.0,0.024]
[1694024576661,2.87973027,25717.0,25716.0,0.024]
[1694024576876,3.26637554,25717.0,25709.0,0.5]
[1694024577094,0.54254527,25716.0,25709.0,0.5]
[1694024577314,0.08,25710.0,25709.0,0.5]
[1694024577772,0.857907,25710.0,25709.0,0.5]
[1694024578000,0.08,25710.0,25709.0,0.5]
[1694024578897,1.555662,25713.0,25709.0,0.5]
[1694024578898,0.06,25713.0,25711.0,0.06]
[1694024579130,0.06,25713.0,25711.0,0.45685811]
[1694024579352,1.555432,25717.0,25714.0,0.42]
[1694024579589,1.555432,25717.0,25715.0,0.15465811]
[1694024579813,1.555432,25717.0,25714.0,0.42]
[1694024580028,0.1559,25718.0,25714.0,0.57465811]
[1694024580240,1.711243,25718.0,25714.0,0.57465811]
[1694024580494,0.38664527,25717.0,25714.0,0.445]
[1694024580704,0.777725,25716.0,25714.0,0.42]
[1694024580921,1.94209527,25716.0,25714.0,0.42]
[1694024581153,2.71982027,25716.0,25714.0,0.445]
[1694024581368,0.40664527,25715.0,25714.0,0.445]
[1694024581640,2.34880254,25715.0,25714.0,0.445]
[1694024581886,3.12655854,25715.0,25714.0,0.445]
[1694024582136,2.73991327,25715.0,25714.0,0.445]
[1694024582645,2.73991327,25715.0,25714.0,0.47]
[1694024582906,2.81991327,25715.0,25714.0,0.445]
[1694024583433,2.82091327,25715.0,25714.0,0.445]
[1694024583679,2.72191327,25715.0,25714.0,0.47]
[1694024583934,1.94315727,25715.0,25714.0,0.445]
[1694024584238,0.002,25715.0,25714.0,0.458]
[1694024584438,2.17035727,25715.0,25714.0,0.445]
[1694024584706,2.17035727,25715.0,25714.0,0.42]
[1694024584707,4.16601327,25715.0,25714.0,0.42]
[1694024584981,4.54835854,25715.0,25714.0,0.466]
[1694024585249,4.54307854,25715.0,25714.0,0.466]
[1694024585502,4.54307854,25715.0,25706.0,0.014998]
[1694024585503,0.02,25708.0,25706.0,0.014998]
[1694024585716,0.64884527,25707.0,25706.0,0.014998]
[1694024585938,3.04283927,25707.0,25706.0,0.014998]
[1694024586163,4.22748254,25707.0,25706.0,0.014998]
[1694024586384,5.21274254,25707.0,25706.0,0.014998]
[1694024586602,5.20416254,25707.0,25706.0,0.014998]
[1694024586835,5.21976054,25707.0,25706.0,0.014998]
[1694024587073,5.30068146,25707.0,25706.0,0.014998]
[1694024587282,3.93303619,25707.0,25706.0,0.014998]
[1694024587724,2.77283819,25707.0,25706.0,0.014998]
[1694024587946,0.05619892,25707.0,25706.0,0.17165611]
[1694024588209,0.42332619,25707.0,25706.0,0.028998]
[1694024588428,2.07544931,25707.0,25706.0,0.026998]
[1694024588645,2.07544931,25707.0,25706.0,0.016998]
[1694024588646,2.09844931,25707.0,25706.0,0.016998]
[1694024588856,2.09844931,25707.0,25706.0,0.019998]
[1694024588857,0.54245331,25707.0,25706.0,0.019998]
[1694024589293,0.03568092,25707.0,25706.0,0.019998]
[1694024589537,0.03568092,25707.0,25706.0,0.016998]
[1694024589761,1.17732419,25707.0,25706.0,0.039998]
[1694024589973,1.95532219,25707.0,25706.0,0.039998]
[1694024590188,1.95532219,25707.0,25706.0,0.063998]
[1694024590189,0.01468092,25707.0,25706.0,0.063998]
[1694024590403,0.01268092,25707.0,25706.0,0.039998]
[1694024590836,0.01268092,25707.0,25706.0,0.058998]
[1694024590837,0.01468092,25707.0,25706.0,0.058998]
[1694024591479,0.79267892,25707.0,25706.0,0.058998]
[1694024591693,2.11638808,25707.0,25706.0,0.058998]
[1694024591906,0.95174481,25707.0,25706.0,0.058998]
[1694024592137,0.01468092,25707.0,25706.0,0.058998]
[1694024592975,0.01468092,25707.0,25706.0,0.039998]
[1694024592976,0.01268092,25707.0,25706.0,0.039998]
[1694024593448,0.01268092,25707.0,25706.0,0.052998]
[1694024593449,2.97552019,25707.0,25706.0,0.052998]
[1694024593669,3.07552019,25707.0,25706.0,0.039998]
[1694024593876,4.36216546,25707.0,25706.0,0.039998]
[1694024594092,4.43224546,25707.0,25706.0,0.061998]
[1694024594301,3.14776019,25707.0,25706.0,0.039998]
[1694024594560,3.07452019,25707.0,25706.0,0.014998]
[1694024594770,3.07452019,25707.0,25706.0,0.052998]
[1694024594987,3.07452019,25707.0,25706.0,0.039998]
[1694024595209,3.07452019,25707.0,25706.0,0.014998]
[1694024595430,4.70326346,25707.0,25706.0,0.014998]
[1694024595654,0.08,25702.0,25701.0,0.020518]
[1694024595912,4.80144127,25702.0,25701.0,0.020518]
[1694024596134,3.90144127,25702.0,25701.0,0.020518]
[1694024596796,3.04329227,25702.0,25701.0,0.020518]
[1694024597077,2.4991945,25702.0,25701.0,0.020518]
[1694024597250,3.14481027,25702.0,25701.0,0.015518]
[1694024597676,2.36666127,25702.0,25701.0,0.015518]
[1694024597906,0.40916327,25702.0,25701.0,0.029518]
[1694024598127,0.022518,25702.0,25701.0,0.029518]
[1694024598356,1.35718607,25702.0,25701.0,0.029518]
[1694024598562,3.22459027,25702.0,25701.0,0.029518]
[1694024598812,4.04481027,25702.0,25701.0,0.015518]
[1694024599331,4.04581027,25702.0,25701.0,0.029518]
[1694024599587,4.45705027,25702.0,25701.0,0.029518]
[1694024599843,1.55979827,25696.0,25688.0,0.019998]
[1694024600116,6.62249854,25696.0,25688.0,0.019998]
[1694024600359,7.05339854,25696.0,25688.0,0.019998]
[1694024600663,1.46769827,25691.0,25688.0,0.019998]
[1694024601329,0.04,25681.0,25680.0,0.019998]
[1694024601340,0.04,25681.0,25675.0,0.269998]
[1694024601586,1.94644354,25676.0,25675.0,0.269998]
[1694024601859,1.96769827,25673.0,25672.0,0.029998]
[1694024602141,0.99979827,25669.0,25659.0,0.2075]
[1694024602544,0.2422,25662.0,25649.0,0.07854]
[1694024602549,0.2422,25662.0,25660.0,0.00375529]
[1694024602756,0.56,25665.0,25660.0,0.00375529]
[1694024602757,0.58958,25674.0,25663.0,0.04]
[1694024602920,0.38664527,25673.0,25672.0,0.00375529]
[1694024603138,0.9635,25675.0,25674.0,0.00395702]
[1694024603383,0.0048,25680.0,25678.0,0.00375529]
[1694024603606,0.7,25679.0,25678.0,0.00375529]
[1694024603817,0.38664527,25679.0,25678.0,0.15861513]
[1694024604063,0.024,25673.0,25672.0,0.00775529]
[1694024604283,0.44644354,25673.0,25672.0,0.002]
[1694024604718,0.38664527,25673.0,25670.0,0.00375529]
[1694024604953,0.62884527,25672.0,25670.0,0.00375529]
[1694024605150,1.28664527,25671.0,25667.0,0.00375529]
[1694024605382,0.35979827,25670.0,25667.0,0.00375529]
[1694024605588,0.38664527,25669.0,25668.0,0.00375529]
[1694024606473,0.38664527,25669.0,25661.0,0.998789]
[1694024606474,0.38664527,25669.0,25665.0,0.00375529]
[1694024606689,0.38664527,25669.0,25668.0,0.00375529]
[1694024606897,0.38664527,25669.0,25668.0,0.003]
[1694024606898,1.40799427,25669.0,25668.0,0.003]
[1694024607106,3.80767579,25669.0,25668.0,0.003]
[1694024607318,0.02,25667.0,25665.0,0.00369529]
[1694024607556,0.02,25667.0,25663.0,0.00369529]
[1694024607557,1.18864354,25666.0,25663.0,0.00369529]
[1694024607770,1.96789254,25666.0,25663.0,0.00369529]
[1694024607982,1.28664527,25664.0,25663.0,0.00369529]
[1694024608195,1.56504864,25664.0,25663.0,0.00369529]
[1694024608398,1.56537925,25664.0,25663.0,0.00369529]
[1694024608620,0.38697588,25664.0,25663.0,0.00369529]
[1694024608876,0.00033061,25664.0,25663.0,0.00369529]
[1694024609304,0.40997588,25664.0,25663.0,0.00569529]
[1694024609764,0.40997588,25664.0,25663.0,0.00669529]
[1694024609995,0.40997588,25664.0,25663.0,1.56456102]
[1694024609996,0.02333061,25664.0,25663.0,1.56456102]
[1694024610207,0.03033061,25664.0,25663.0,2.42489302]
[1694024610415,0.03,25664.0,25663.0,1.64556102]
[1694024610631,0.1654,25673.0,25672.0,0.00369529]
[1694024610848,0.1654,25673.0,25672.0,0.1583534]
[1694024610849,1.728192,25673.0,25672.0,0.1583534]
[1694024611054,1.728192,25673.0,25665.0,0.00369529]
[1694024611055,1.45979827,25669.0,25665.0,0.00369529]
[1694024611271,1.28664527,25666.0,25661.0,0.00369529]
[1694024611469,1.28664527,25666.0,25662.0,0.00369529]
[1694024611470,0.44644354,25664.0,25662.0,0.00369529]
[1694024611690,0.44644354,25664.0,25663.0,0.024]
[1694024611691,0.38864527,25664.0,25663.0,0.024]
[1694024611900,0.38864527,25664.0,25663.0,0.02769529]
[1694024612106,0.6641,25669.0,25668.0,0.00369529]
[1694024612326,0.88664527,25669.0,25668.0,0.1583534]
[1694024612534,0.38664527,25669.0,25668.0,0.1583534]
[1694024612739,0.38664527,25669.0,25668.0,0.00369529]
[1694024612961,0.92,25675.0,25668.0,0.00369529]
[1694024612962,0.5,25676.0,25672.0,0.00369529]
[1694024613170,0.5,25676.0,25674.0,0.00369529]
[1694024613171,0.38664527,25675.0,25674.0,0.00369529]
[1694024613391,0.06288453,25679.0,25678.0,0.00369529]
[1694024613602,0.38664527,25679.0,25678.0,0.1583534]
[1694024613872,0.38664527,25679.0,25670.0,0.799101]
[1694024613873,0.05979827,25678.0,25676.0,0.00369529]
[1694024614040,0.38664527,25677.0,25676.0,0.00369529]
[1694024614556,0.816099,25679.0,25677.0,0.00369529]
[1694024614557,0.655999,25679.0,25677.0,0.00369529]
[1694024614809,0.655999,25679.0,25674.0,0.00220173]
[1694024614810,1.47979827,25675.0,25674.0,0.002]
[1694024615077,2.27553984,25675.0,25674.0,0.002]
[1694024615325,2.35851984,25675.0,25674.0,0.002]
[1694024615583,2.77463984,25675.0,25674.0,0.002]
[1694024615827,2.27553984,25675.0,25674.0,0.002]
[1694024616053,2.33333984,25675.0,25674.0,0.002]
[1694024616259,2.31333984,25675.0,25674.0,0.002]
[1694024616543,0.39240371,25679.0,25678.0,0.06369529]
[1694024616544,0.155999,25679.0,25678.0,0.06369529]
[1694024616756,0.05979827,25687.0,25685.0,0.00369529]
[1694024616966,0.05979827,25687.0,25686.0,0.15465811]
[1694024617190,0.38664527,25687.0,25686.0,0.1583534]
[1694024617836,0.38664527,25687.0,25686.0,0.00369529]
[1694024618263,0.54256627,25687.0,25686.0,0.00369529]
[1694024618681,0.55656627,25687.0,25686.0,0.00569529]
[1694024618886,1.35216927,25687.0,25686.0,0.00769529]
[1694024619096,0.57356627,25687.0,25686.0,0.00769529]
[1694024619310,0.61636454,25687.0,25686.0,0.00569529]